Cogmind - Beta 16 @@@ ROGUE MODE // 2025.12.11 @ 17:33:15 // Winter2019/RPGLIKE Player: Gallgagger Result: Destroyed by G-47 Trooper with Particle Gun Performance ------------- Evolutions (2) 1000 Regions Visited (3) 600 Robots Destroyed (69) 345 Value Destroyed (2018) 2018 Prototype IDs (13) 260 Alien Tech Used (0) 0 Bonus (250) 250 TOTAL SCORE: 4473 Bonus ------- High Alert Combat Kills 82 Follower Combat Kills 168 Cogmind --------- Core Integrity 0/650 Matter 300/300 Energy 147/195 System Corruption 0% Temperature Cool (9) Movement Rolling (146) Ox4 Location -8/Materials Parts ------- > --- POWER (2+2) ------ Light Ion Engine Makeshift Power Source > --- PROPULSION (3+1) - Wheel Wheel Compact Wheel > --- UTILITY (4+1) ---- Humpback V3-11A's Pendant Rainbow Chip (+) > --- WEAPON (3+1) ----- Powered Cannon (+) Heavy Battle Rifle > --- INVENTORY (32) --- Protomatter-43 Protomatter-42 Protomatter-42 Protomatter-36 Subdweller Monowheel Scrap Shield Peak State ------------ > --- POWER ------------ Light Ion Engine Makeshift Power Source > --- PROPULSION ------- Subdweller Monowheel Subdweller Monowheel Subdweller Monowheel > --- UTILITY ---------- Humpback V3-11A's Pendant Rainbow Chip > --- WEAPON ----------- Powered Cannon Heavy Battle Rifle > --- INVENTORY -------- Subdweller Monowheel Subdweller Monowheel Subdweller Monowheel Scrap Shield [Rating: 48] Favorites ----------- Power Light Ion Engine Engine Light Ion Engine Propulsion VTOL Module Wheel Subdweller Monowheel Flight Unit VTOL Module Utility Scrap Shield Device V3-11A's Pendant Storage Humpback Processor Rainbow Chip Protection Scrap Shield Weapon Heavy Battle Rifle Energy Gun Beamcaster Energy Cannon Powered Cannon Ballistic Gun Heavy Battle Rifle Special Weapon Mining Laser Slashing Weapon Mining Claw Build | -11 -10 -10 -8 ------- Run | Yrd Mat Sub Mat Slots Evolved 8 | 3 3 1 1 Power 1 | . 1 . . Propulsion 2 | 1 1 . . Utility 3 | 1 . 1 1 Weapon 2 | 1 1 . . Parts Attached 36 | 5 12 15 4 Power 3 | 1 1 1 . Engine 3 | 1 1 1 . Core . | . . . . Reactor . | . . . . Propulsion 15 | 2 3 6 4 Treads . | . . . . Leg . | . . . . Wheel 12 | 2 . 6 4 Hover . | . . . . Flight 3 | . 3 . . Utility 6 | . 2 4 . Device 2 | . 1 1 . Storage 1 | . . 1 . Processor 1 | . . 1 . Hackware . | . . . . Protection 2 | . 1 1 . Artifact . | . . . . Weapon 12 | 2 6 4 . Energy Gun 2 | . 1 1 . Energy Cannon 1 | . . 1 . Ballistic Gun 7 | 2 4 1 . Ballistic Cannon . | . . . . Launcher . | . . . . Special Weapon 1 | . 1 . . Impact Weapon . | . . . . Slashing Weapon 1 | . . 1 . Piercing Weapon . | . . . . Special Melee Weapon . | . . . . Unidentified Prototypes 2 | . . 2 . Parts Lost . | . . . . Power . | . . . . Propulsion . | . . . . Utility . | . . . . Weapon . | . . . . Highest Loss Streak . | . . . . To Critical Strikes . | . . . . Average Backups 1 | . . 2 2 Power . | . . . . Propulsion . | . . . 1 Utility . | . . . 1 Weapon . | . . . . Tool/Special . | . . . . Unused Backups 2 | . . 1 1 Power . | . . . . Propulsion 2 | . . 1 1 Utility . | . . . . Weapon . | . . . . Tool/Special . | . . . . Average Slot Usage (%) 75 | . 84 74 60 Engine 15 | . 13 16 11 Wheel 8 | . 20 4 17 Flight 17 | . 8 20 . Device 6 | . 12 4 5 Storage 1 | . . 1 5 Processor 1 | . . 1 5 Protection 5 | . . 6 . Energy Gun 1 | . 2 1 . Energy Cannon 5 | . . 6 5 Ballistic Gun 12 | . 25 9 5 Peak Build Rating 48 | 5 16 48 48 Average Rating 30 | 3 9 34 46 On Entrance 17 | . 5 16 47 Avg Prop Armor Cover (%) 1 | . . 1 . Naked Turns . | . . . . Heaviest Build 221 | 9 19 221 221 Greatest Support 70 | 31 36 70 70 Greatest Overweight (x) 4 | . . 4 4 Average Overweight (x) 1 | . . 1 3 Largest Inventory Capacity 32 | 2 2 32 32 Average Capacity 8 | 2 2 9 32 Most Carried 9 | . 2 7 9 Average Carried 2 | . . 2 6 Final Capacity 32 | 2 2 32 32 Final Carried 7 | . 2 4 7 Class Distribution -------------------- 56% | Gunner 23% | Hauler-Gunner 15% | Mutant 4% | Sprinter Dominant Class ---------------- Mutant | -10/Materials Gunner | -10/Subcaves Hauler-Gunner | -8/Materials Resources | -11 -10 -10 -8 ----------- Run | Yrd Mat Sub Mat Matter Collected 1440 | 248 642 497 53 Remotely . | . . . . Salvage Created 2034 | . 1165 503 366 Parts 152 | . 87 47 18 Haulers Intercepted 3 | . 2 . 1 Recyclers Shooed . | . . . . Parts Field Recycled . | . . . . Retrieved Matter . | . . . . Parts Self-Destructed 14 | . . 14 . Prevented . | . . . . Parts Restored . | . . . . Kills | -11 -10 -10 -8 ------- Run | Yrd Mat Sub Mat Combat Hostiles Destroyed 60 | . 36 17 7 Guns 49 | . 36 13 . Cannons 9 | . . 4 5 Classes Destroyed 9 | . 5 1 3 Builder 2 | . . . 2 Tunneler 1 | . 1 . . Hauler 3 | . 2 . 1 Recycler 1 | . . . 1 Turret 2 | . . 2 . Swarmer 15 | . 12 3 . Grunt 26 | . 21 . 5 Duelist 2 | . . . 2 Subdweller 17 | . 3 14 . Best Kill Streak 7 | . 4 4 7 Combat Bots Only 6 | . 4 4 6 Max Kills in Single Turn 2 | . 2 1 1 Gunslinging 1 | . 1 . . Exploded . | . . . . Melee . | . . . . Uniques/NPCs Destroyed . | . . . . Combat | -11 -10 -10 -8 -------- Run | Yrd Mat Sub Mat Hostile Shots Fired 219 | . 122 73 24 Missed 69 | . 39 19 11 Hits 150 | . 83 54 13 Projectile 150 | . 83 54 13 AOE 6 | . 1 5 . Critical Strikes 3 | . 1 2 . Damage Taken 2539 | . 938 1280 321 Core 1730 | . 753 725 252 Absorbed by Shields . | . . . . Redirected to Core 1489 | . 585 652 252 Core Remaining (%) 68 | 100 . 37 . Volleys Fired 222 | . 92 107 23 Largest 3 | . 3 3 2 Hottest 131 | . 102 131 73 Shots Fired 394 | . 194 176 24 Gun 292 | . 187 104 1 Cannon 95 | . . 72 23 Launcher . | . . . . Special 7 | . 7 . . Kinetic 240 | . 170 69 1 Thermal 154 | . 24 107 23 Explosive . | . . . . Electromagnetic . | . . . . Robot Hit Streak 29 | . 18 29 13 Robot Miss Streak 3 | . 3 3 2 Penetration Max . | . . . . Secondary Targets 6 | . 3 3 . Max Gunslinging Chain 1 | . 1 1 . Shots Hit Robots 243 | . 123 99 21 Core Hits 90 | . 51 32 7 Critical Kills 2 | . . . 2 Critical Parts Destroyed . | . . . . Critical Strikes 6 | . 1 3 2 Burn 3 | . . 3 . Meltdown 2 | . . . 2 Destroy 1 | . 1 . . Melee Attacks 4 | . . 4 . Impact . | . . . . Slashing 4 | . . 4 . Piercing . | . . . . Sneak Attacks . | . . . . Combat Hostiles . | . . . . Follow-up Attacks . | . . . . Damage Inflicted 4667 | . 1856 1828 983 Guns 3361 | . 1856 1488 17 Cannons 1306 | . . 340 966 Explosions . | . . . . Melee . | . . . . Ramming . | . . . . Kinetic 2597 | . 1680 900 17 Thermal 2070 | . 176 928 966 Explosive . | . . . . Electromagnetic . | . . . . Impact . | . . . . Slashing . | . . . . Piercing . | . . . . Highest Corruption . | . . . . Average Corruption . | . . . . Corruption Purged . | . . . . Corruption Blocked . | . . . . Overload Shots . | . . . . Overflow Damage 51 | . . . 51 Projectiles 51 | . . . 51 Explosions . | . . . . Melee . | . . . . Knockbacks . | . . . . Impact . | . . . . Kinetic . | . . . . Secondary . | . . . . Self-Inflicted Damage . | . . . . Shots . | . . . . Rammed . | . . . . Targets Rammed . | . . . . Kicked . | . . . . Crushed . | . . . . Highest Temperature 261 | . 9 261 . Average Temperature 25 | . 4 107 . Received Heat Transfer 769 | . 291 469 9 Siege Activations . | . . . . Martial Activations . | . . . . Shielding Activations . | . . . . Robots Disrupted . | . . . . Combat Hostiles . | . . . . Robots Corrupted . | . . . . Combat Hostiles . | . . . . Parts Fried . | . . . . Impact Corruptions . | . . . . Robots Melted 2 | . . . 2 Combat Hostiles 2 | . . . 2 Parts Melted 4 | . . 3 1 Heat Transferred 1813 | . 444 1369 . Parts Sabotaged . | . . . . Parts Stolen . | . . . . Parts Stripped . | . . . . Power Chain Reactions . | . . . . Alert | -11 -10 -10 -8 ------- Run | Yrd Mat Sub Mat Maximum Alert Level 2 | . 2 . 1 Low Security (%) 31 | 100 20 . 71 Level 1 33 | . 35 . 28 Level 2 34 | . 43 . . Level 3 . | . . . . Level 4 . | . . . . Level 5 . | . . . . High Security . | . . . . Max Security . | . . . . Peak Influence 624 | . 624 . 230 Initial 10 | . . . 10 Average 312 | . 362 . 140 Influence Increases 1488 | . 1036 132 320 Destroy 0b10 Robot/C 980 | . 660 100 220 Destroy 0b10 Robot/NC 40 | . 15 . 25 Destroy Leader 198 | . 154 . 44 Allied During Kill 24 | . . 2 22 Successful Hack 5 | . 5 . . Select Force Hacks 60 | . 60 . . Disable Machine 45 | . 45 . . Destroy Structure 16 | . 7 . 9 Lose Combat Pursuer 120 | . 90 30 . Influence Decreases 1338 | . 425 722 191 Entered New Map 305 | . . 294 11 Time Decay 973 | . 425 408 140 Lost Ally 60 | . . 20 40 Squads Dispatched 12 | . 10 . 2 Investigation 9 | . 8 . 1 Extermination . | . . . . Reinforcement 3 | . 2 . 1 Assault . | . . . . Garrison . | . . . . Intercept . | . . . . Searches Triggered . | . . . . Construction Impeded . | . . . . Haulers Reinforced . | . . . . Active Scanning Responses . | . . . . Cargo Convoy Interrupts . | . . . . Stealth | -11 -10 -10 -8 --------- Run | Yrd Mat Sub Mat Distress Signals 8 | . 4 . 4 Communications Jammed . | . . . . Distress Signals . | . . . . Times Spotted 103 | . 56 31 16 Peak Tracking Total 7 | . 7 6 6 Tactical Retreats 7 | . 5 2 . Traps | -11 -10 -10 -8 ------- Run | Yrd Mat Sub Mat Traps Triggered 2 | . 1 . 1 Indirectly . | . . . . Trap Hack Attempts . | . . . . Triggered . | . . . . Disarmed . | . . . . Reprogrammed . | . . . . Reused . | . . . . Traps Extracted . | . . . . Installed . | . . . . Triggered . | . . . . Machines | -11 -10 -10 -8 ---------- Run | Yrd Mat Sub Mat Machines Disabled 5 | . 3 2 . Max in Single Turn 1 | . 1 1 . Machines Repaired . | . . . . Machines Dismantled . | . . . . Machines Sabotaged . | . . . . Overloaded Fab Kills . | . . . . Hacking | -11 -10 -10 -8 --------- Run | Yrd Mat Sub Mat Machines Accessed 11 | . 9 2 . Terminals 6 | . 6 . . Fabricators . | . . . . Repair Stations 1 | . 1 . . Recycling Units 2 | . 2 . . Scanalyzers . | . . . . Garrison Access . | . . . . Total Hacks 33 | . 21 12 . Successful 24 | . 12 12 . Failed 9 | . 9 . . Catastrophic 2 | . 2 . . Database Lockouts . | . . . . Manual 21 | . 21 . . Terminals 15 | . 15 . . Fabricators . | . . . . Repair Stations 2 | . 2 . . Recycling Units 4 | . 4 . . Scanalyzers . | . . . . Garrison Access . | . . . . Terminal Hacks 12 | . . 12 . Record 11 | . . 11 . Proto ID Catalog 1 | . . 1 . Fabricator Hacks . | . . . . Repair Station Hacks . | . . . . Recycling Unit Hacks . | . . . . Scanalyzer . | . . . . Garrison Access Hacks . | . . . . Unauthorized Hacks 12 | . 12 . . Terminals 9 | . 9 . . Botnet 1 | . 1 . . Disrupt 3 | . 3 . . Operators 1 | . 1 . . Sabotage 4 | . 4 . . Fabricators . | . . . . Repair Stations 1 | . 1 . . Patch 1 | . 1 . . Recycling Units 2 | . 2 . . Tunnel 2 | . 2 . . Scanalyzers . | . . . . Garrison Access . | . . . . Data Cores Recovered . | . . . . Used . | . . . . Hacking Detections 3 | . 3 . . Full Trace Events 2 | . 2 . . Feedback Events . | . . . . Feedback Blocked . | . . . . Robot Schematics Acquired . | . . . . Robots Built . | . . . . Authchips . | . . . . Time . | . . . . Total Robot Build Rating . | . . . . Part Schematics Acquired . | . . . . Parts Built . | . . . . Authchips . | . . . . Time . | . . . . Total Part Build Rating . | . . . . Part Studies Acquired . | . . . . Parts Repaired . | . . . . Time . | . . . . Parts Recycled . | . . . . Recycled Matter . | . . . . Retrieved Matter . | . . . . Retrieved Components . | . . . . Parts Scanalyzed . | . . . . Part Schematics Acquired . | . . . . Parts Damaged . | . . . . Bothacking | -11 -10 -10 -8 ------------ Run | Yrd Mat Sub Mat Used RIF Installer . | . . . . Robots Hacked . | . . . . Non-combat . | . . . . Combat . | . . . . Robot Hacks Applied . | . . . . Relay Couplers Released . | . . . . Fabnet Peak Effective % . | . . . . Robots Rewired . | . . . . Allies Hacked . | . . . . Hacks Repelled . | . . . . Allies | -11 -10 -10 -8 -------- Run | Yrd Mat Sub Mat Total Allies 4 | . . 4 . Largest Group 3 | . . 3 2 Highest-Rated Group 57 | . . 57 38 Highest-Rated Ally 19 | . . 19 19 Total Orders . | . . . . Ally Attacks 38 | . . 5 33 Total Damage 582 | . . 111 471 Kills 6 | . . 1 5 Allies Corrupted . | . . . . Allies Melted . | . . . . Intel | -11 -10 -10 -8 ------- Run | Yrd Mat Sub Mat Active Infowar (turns) 1292 | . 1286 6 . Seismic 1292 | . 1286 6 . Robot Analysis Total . | . . . . Derelict Logs Recovered 2 | . . 2 . Drone Launches . | . . . . Drone Recoveries . | . . . . Exploration | -11 -10 -10 -8 ------------- Run | Yrd Mat Sub Mat Turns Passed 6981 | 39 1295 5344 303 Spaces Moved 5303 | 36 1290 3803 174 Core 4 | 4 . . . Treads . | . . . . Legs . | . . . . Wheels 1704 | 32 626 872 174 Hover . | . . . . Flight 3595 | . 664 2931 . Fastest Speed 29 | 50 29 29 133 Average Speed 103 | 88 58 117 142 Slowest Speed 150 | 100 100 150 146 Overloaded Moves . | . . . . Propulsion Burnouts . | . . . . Robots Hopped 4 | . 4 . . Potential Cave-ins . | . . . . Cave-ins Triggered . | . . . . Exploration Rate (%) 54 | 3 97 97 19 Regions Visited 3 Branch Regions 1 Pre-discovered Areas 4 | . 2 2 . Known Exits Taken . | . . . . Unknown Exits Taken 3 | 1 1 1 . Scrap Searched 11 | . . 11 . Spaces Dug 10 | . 1 9 . Terrain Destroyed 35 | . 1 31 3 Melee . | . . . . Projectile 35 | . 1 31 3 AOE . | . . . . Terrain Rammed . | . . . . Walls Destroyed . | . . . . Machines Disabled . | . . . . Actions | -11 -10 -10 -8 --------- Run | Yrd Mat Sub Mat Total 6419 | 40 1626 4542 211 Wait 726 | . 187 539 . Move 5292 | 35 1281 3802 174 Hop 4 | . 4 . . Pick Up 21 | . 8 9 4 Fast Attach 19 | 5 6 5 3 Attach 6 | . . 5 1 Detach 3 | . . 2 1 Swap 27 | . 7 19 1 Drop 28 | . 9 15 4 Fire 222 | . 92 107 23 Melee 4 | . . 4 . Ram . | . . . . Kick . | . . . . Crush . | . . . . Escape Stasis . | . . . . Rewire . | . . . . Trap . | . . . . Miscellaneous 67 | . 32 35 . Route ------- -11/Scrapyard -10/Materials (discovered 5 exits: [*Mat x2] / [*Min x2] / *Sub) -10/Subcaves (discovered 3 exits: *Mat x2 / [*Rec]) -8/Materials (discovered 1 exit: [*Fac]) History --------- Turn | Location | Event 1 | -11/Scrapyard | Upgraded with Propulsion slot (x1) 1 | -11/Scrapyard | Upgraded with Utility slot (x1) 1 | -11/Scrapyard | Upgraded with Weapon slot (x1) 2 | -11/Scrapyard | Met Revision 17 26 | -11/Scrapyard | Discovered new exit (range 14) 40 | -11/Scrapyard | Entered Materials 103 | -10/Materials | Discovered new exit (range 3) 216 | -10/Materials | Discovered new exit (range 12) 311 | -10/Materials | Discovered new exit (range 16) 313 | -10/Materials | Build established: Mutant 354 | -10/Materials | Reached level 2 540 | -10/Materials | Derelicts attacked the area 776 | -10/Materials | Discovered new exit (range 13) 788 | -10/Materials | Reached level 3 910 | -10/Materials | Upgraded with Propulsion slot (x1) 910 | -10/Materials | Upgraded with Weapon slot (x1) 1019 | -10/Materials | Discovered new exit (range 8) 1274 | -10/Materials | Reached level 4 1279 | -10/Materials | Upgraded with Power slot (x1) 1287 | -10/Materials | Build established: Sprinter 1335 | -10/Materials | Entered Subcaves 1371 | -10/Subcaves | A swath of the cavern ceiling suddenly collapsed 1376 | -10/Subcaves | Learned location of Zion (-7) 1434 | -10/Subcaves | Ambushed by swarm of Subdwellers 1458 | -10/Subcaves | Core integrity fell below 50% 1476 | -10/Subcaves | Lost 3 allies 1623 | -10/Subcaves | Ambushed by Subdwellers from Twisted Machinery 1637 | -10/Subcaves | Core integrity fell below 20% 1647 | -10/Subcaves | Build established: Gunner 1649 | -10/Subcaves | Discovered new exit (range 13) 1730 | -10/Subcaves | Ambushed by Subdwellers from Twisted Machinery 1996 | -10/Subcaves | Shifting Twisted Machinery released Sub. Beam Cannon 2037 | -10/Subcaves | Shifting Twisted Machinery released Hvy. Battle Rifle 2125 | -10/Subcaves | A Subdweller sparked back to life 2125 | -10/Subcaves | A Subdweller sparked back to life 2125 | -10/Subcaves | A Subdweller sparked back to life 2164 | -10/Subcaves | Found Prototype Energy Cannon 2164 | -10/Subcaves | Identified Powered Cannon 2165 | -10/Subcaves | Attached Powered Cannon, gained temporary slot: Power 2417 | -10/Subcaves | Shifting Twisted Machinery released Spk. Treads 2421 | -10/Subcaves | Shifting Twisted Machinery released Mak. Sword 2453 | -10/Subcaves | Visited triangular shrine 2460 | -10/Subcaves | Found Prototype Device 2491 | -10/Subcaves | Shifting Twisted Machinery released Sub. Machine Gun 2498 | -10/Subcaves | Learned Materials machine intel 2564 | -10/Subcaves | Discovered new exit (range 5) 2580 | -10/Subcaves | Disturbed a concealed Subdweller 3394 | -10/Subcaves | A swath of the cavern ceiling suddenly collapsed 3486 | -10/Subcaves | Reached level 5 3488 | -10/Subcaves | Upgraded with Utility slot (x1) 3488 | -10/Subcaves | Identified V3-11A's Pendant 3534 | -10/Subcaves | Approached by friendly Subdweller 3573 | -10/Subcaves | Befriended Subdweller 3816 | -10/Subcaves | Visited Clippyterm 3819 | -10/Subcaves | Learned Factory fabricator intel 3828 | -10/Subcaves | Befriended Subdweller 4205 | -10/Subcaves | Visited 4L-MR0's lab 4282 | -10/Subcaves | Met a Zionite searching for "candidates" 5278 | -10/Subcaves | Befriended Subdweller 5524 | -10/Subcaves | Found Rainbow Chip 5657 | -10/Subcaves | Build established: Hauler-Gunner 5708 | -10/Subcaves | Discovered new exit (range 13) 5727 | -10/Subcaves | Attached Rainbow Chip, gained temporary slots: Power, Propulsion, Utility, Weapon 6679 | -10/Subcaves | Entered Materials 6679 | -8/Materials | Accompanied by 2 allies 6680 | -8/Materials | Loaded intel: 62 machine locations 6680 | -8/Materials | Core integrity fell below 50% 6681 | -8/Materials | Reached level 6 6859 | -8/Materials | Upgraded with Utility slot (x1) 6929 | -8/Materials | Discovered new exit (range 10) 6952 | -8/Materials | Core integrity fell below 20% 6982 | -8/Materials | Destroyed by G-47 Trooper with Particle Gun Last Messages --------------- 06939_ A0-7P6(R) knocked back. 06940_ K-01 Serf collects debris. 06941_ Slug penetrates A0-7P6(R). 06941_ A0-7P6(R) knocked back. 06943_ A0-7P6(R) destroyed. 06943_ K-01 Serf collects debris. 06945_ Knocked back. 06946_ K-01 Serf collects debris. 06948_ Slug penetrates Matter Pump. 06950_ K-01 Serf collects debris. 06951_ Slug penetrates Matter Pump. 06951_ Matter Pump disabled. 06952_ K-01 Serf collects debris. 06957_ Penetrated by Slug. 06959_ K-01 Serf collects debris. 06966_ W-25 Informer sends out distress signal. 06969_ Slug penetrates Wall. 06977_ L-31 Rogue destroyed. 06979_ Destroyed Lgt. Nuclear Core. 06981_ K-01 Serf collects debris. Map ----- +----------------------------------------------------+ | ?????????????????????????????????????????????T???? | | ????????????????"""?????????????????????????""???? | | ????????????????"""??????????????????????????????? | | ????????????????"""??????????????????????????????? | | ?????????????????????????????????????????????????? | | ?????????????????????????????????????????????????? | | ?????????????????????????????????????????????????? | | ???????????????????????????????????????????????T?? | | ?????????????????????????????????????????????????? | | ?????????????????????????????????????????????????? | | ????????????????????????? ???????????????????????? | | ????????????????????????? ???????????????????????? | | ????????????????????????? ???????????????????????? | | ????????????????????????? ???????????????????????? | | ?????????????"""????????? ???????????????????????? | | ????????????"""""???????# ????#??????????????????? | | ????????????"""""???????# ??"""#?????????????????? | | ????????????"""""???????# #?"R"#?????????????????? | | ?????????????"""????????# ##" "##????????????????? | | ????????????????????????# ???????????????? | | ????????????????????????#g ???"""?"""??????? | | ????????????????????????#% " +?"""?"""??????? | | ????????????????????????#= """ #?"""?"""??????? | | ????????????????????????# """ #??????????????? | | ?????????T??????????????# """ #???????????????? | | ????????????????????????#@ "" #???????????????? | | ???????????????"""?"""??#k """ #???????????????? | | ???????????????"""?"""??# "" #????????????"""? | | ???????????????"""?"""??# """ #????????????"""? | | ????????????????????????# " #??"""???????"""? | | ????####+########+#######H% #??"""??????????? | | ????# =%% h ! #??"""??????????? | | ????# < * #???????????????? | | ???#" % #???????????????? | | ?????#### %"% """ ![ ########???????????????? | | ????????# """ %"" ![ ###############????????? | | ????????# %"" %"% ! # = # ?????????? | | ????????# # # ??????????? | | ????????# % # # [*???????????? | | ???# #### # """ # =*#???????????? | | ???# #### ???# # """ # ! #???????????? | | ????????##/#???# #### # """ # =#???????????? | | ????????? ????# #??# # # = #???????????? | | ???????? "?????# #??# # """ # ! #???????????? | | ??????? "G"????# #??# # """ # %!#???????????? | | ??????? "?"????# #??# + """ #=! ##??????????? | | ???????????????# #??# # +% =##??????????? | | ??????????"""??# #??# # [ #%%%##??????????? | | ??????????"""??### #####+#########%**##????????? | | ??????????"""????? # ##??##!%*###########! | +----------------------------------------------------+ Best States ------------- Heat Dissipation 61 Energy Generation 25 Energy Capacity 275 Matter Stores 300 Matter Capacity 300 Sight Range 16 Terrain Scan Density 10 Armor Coverage 800 Power Shielding 33 Evasion (%) 64 Item Schematics ----------------- None Robot Schematics ------------------ None Fabricated ------------ Nothing Repaired ---------- Nothing Studied --------- None Alien Tech Used ----------------- None Achievements -------------- None Challenges ------------ None RPGLIKE | -11 -10 -10 -8 --------- Run | Yrd Mat Sub Mat Levels Raised 5 | . 3 1 1 XP Earned 11962 | 3000 4616 1479 2867 XP Spent 10475 | 2960 4490 825 2200 Upgrades 24 | 10 10 2 2 Power Slot 1 | . 1 . . Propulsion Slot 2 | 1 1 . . Utility Slot 3 | 1 . 1 1 Weapon Slot 2 | 1 1 . . Core Integrity 1 | . . 1 . Heat Dissipation 6 | 3 3 . . Energy Generation 1 | . 1 . . Mass Support 3 | 1 1 . 1 Inventory Capacity 2 | 2 . . . Ranged Accuracy 3 | 1 2 . . Protomatter Created 689 | . 310 203 176 Integrity Restored 1083 | . 600 483 . Core 1070 | . 587 483 . Parts 13 | . 13 . . Protomatter Decayed 147 | . 18 129 . Game ------ Seed TiamatRelayConstruct Manual? 0 Play Time 00:46:02 Cumulative 473.3 hours Start 2025.12.11 @ 16:33:08 End 2025.12.11 @ 17:33:15 Sessions 1 Manual Loads 0 Difficulty Rogue Special Mode Winter2019/RPGLIKE Game No. 177 Rogue 23 Adventurer 154 Explorer 0 Win Type - Total 19 Types 4/3/3/3/2/1/0/1/1/1 Lore% 93 Gallery% 84 Achievement% 61 Wizard Run 0 Options --------- Layout 2 ASCII 0 Keyboard 0 Movement Numpad Keybinds 0 Fullscreen 2 Font 24/Smallcaps Map View 50x44 Zoom Use 0% Tactical HUD 1 Map Filters NONE Filters NONE Steam 1 RUN: caf55e87-15c6-4aab-8365-0ad9a6b7a020